[Event "29th Czech Open-Rapid 2018"]
[Site "Pardubice"]
[Date "2018.07.19"]
[Round "6"]
[White "Neuman, Petr"]
[Black "Gasanov, Eldar"]
[Result "0-1"]
[ECO "B00"]
[WhiteElo "2449"]
[BlackElo "2514"]
[Annotator "ChessBase"]
[PlyCount "94"]
[EventDate "2018.07.18"]
[EventType "swiss"]
[EventCountry "CZE"]
[SourceTitle "playchess.com"]
[Source "ChessBase"]
[SourceQuality "1"]
[TimeControl "900+10"]

1. e4 {[%emt 0:00:00]} Nc6 {[%emt 0:00:01]} 2. Nf3 {[%emt 0:00:00]} d6 {[%emt 0:00:06]} 3. d4 {[%emt 0:00:27]} Nf6 {[%emt 0:00:02]} 4. Nc3 {[%emt 0:00:24]} g6 {[%emt 0:00:03]} 5. h3 {[%emt 0:00:10]} Bg7 {[%emt 0:00:06]} 6. Be3 {[%emt 0:00:09]} a6 {[%emt 0:00:05]} 7. Be2 {[%emt 0:00:23]} O-O {[%emt 0:00:19]} 8. O-O {[%emt 0:00:02]} b5 {[%emt 0:00:40]} 9. a3 {[%emt 0:00:01]} h6 {[%emt 0:00:54]} 10. Qd2 {[%emt 0:00:06]} Kh7 {[%emt 0:00:02]} 11. Rad1 {[%emt 0:00:04]} e6 {[%emt 0:00:12]} 12. Rfe1 {[%emt 0:00:23]} Bb7 {[%emt 0:00:30]} 13. Qc1 {[%emt 0:01:44]} Ne7 {[%emt 0:00:37]} 14. Bd3 {[%emt 0:00:13]} Qc8 {[%emt 0:01:03]} 15. Bf4 {[%emt 0:00:15]} Rd8 {[%emt 0:00:50]} 16. Bh2 {[%emt 0:00:47]} c5 {[%emt 0:00:48]} 17. Bf1 {[%emt 0:00:43]} b4 {[%emt 0:00:37]} 18. axb4 {[%emt 0:00:11]} cxb4 {[%emt 0:00:01]} 19. e5 {[%emt 0:00:21]} bxc3 {[%emt 0:02:57]} 20. exf6 {[%emt 0:00:09]} Bxf6 {[%emt 0:00:03]} 21. bxc3 {[%emt 0:00:24]} Qxc3 {[%emt 0:01:35]} 22. Re3 {[%emt 0:00:32]} Qc7 {[%emt 0:00:36]} 23. c4 {[%emt 0:00:21]} Nf5 {[%emt 0:00:10]} 24. Rb3 {[%emt 0:00:38]} Qe7 {[%emt 0:00:34]} 25. Qb2 {[%emt 0:00:59]} Bc6 {[%emt 0:00:01]} 26. g4 {[%emt 0:00:31]} Nh4 {[%emt 0:00:50]} 27. Nxh4 {[%emt 0:00:03]} Bxh4 {[%emt 0:00:01]} 28. Rb6 {[%emt 0:00:06]} Be8 {[%emt 0:03:24]} 29. Bg2 {[%emt 0:00:53]} Rac8 {[%emt 0:00:06]} 30. Rc1 {[%emt 0:00:35]} Bg5 {[%emt 0:00:08]} 31. f4 {[%emt 0:00:20]} Bf6 {[%emt 0:00:03]} 32. Rxa6 {[%emt 0:00:07]} d5 {[%emt 0:00:10]} 33. f5 {[%emt 0:02:48]} dxc4 {[%emt 0:00:23]} 34. fxg6+ {[%emt 0:00:03]} fxg6 {[%emt 0:00:01]} 35. Be5 {[%emt 0:00:20]} Bxe5 {[%emt 0:00:17]} 36. dxe5 {[%emt 0:00:01]} Qc5+ {[%emt 0:00:02]} 37. Qf2 {[%emt 0:00:10]} Qxf2+ {[%emt 0:00:09]} 38. Kxf2 {[%emt 0:00:01]} Rd2+ {[%emt 0:00:02]} 39. Kg3 {[%emt 0:00:12]} c3 {[%emt 0:00:39]} 40. Rxe6 {[%emt 0:00:56]} c2 {[%emt 0:00:03]} 41. Rd6 {[%emt 0:00:05]} Rc3+ {[%emt 0:00:09]} 42. Kh2 {[%emt 0:00:13]} Re2 {[%emt 0:00:51]} 43. Kh1 {[%emt 0:00:16]} Rb3 {[%emt 0:00:18]} 44. Ra6 {[%emt 0:00:06]} Rb1 {[%emt 0:00:15]} 45. Ra1 {[%emt 0:00:10]} Rxa1 {[%emt 0:00:26]} 46. Rxa1 {[%emt 0:00:01]} Rd2 {[%emt 0:00:04]} 47. Bf3 {[%emt 0:00:03]} Bc6 {[%emt 0:00:15]} 0-1

[Event "29th Czech Open-Rapid 2018"]
[Site "Pardubice"]
[Date "2018.07.19"]
[Round "6"]
[White "Potapov, Alexander"]
[Black "Meleshko, Vladimir"]
[Result "0-1"]
[ECO "A52"]
[WhiteElo "2407"]
[BlackElo "2284"]
[Annotator "NA"]
[PlyCount "85"]
[EventDate "2018.07.18"]
[EventType "swiss"]
[EventCountry "CZE"]
[SourceTitle "playchess.com"]
[Source "ChessBase"]
[SourceQuality "1"]
[TimeControl "900+10"]

1. d4 {[%emt 0:00:00]} Nf6 {[%emt 0:00:00]} 2. c4 {[%emt 0:00:00]} e5 {[%emt 0:00:00]} 3. dxe5 {[%emt 0:00:00]} Ng4 {[%emt 0:00:00]} 4. Nh3 {[%emt 0:00:12]} Nxe5 {[%emt 0:01:03]} 5. e3 {[%emt 0:00:09]} d6 {[%emt 0:01:30]} 6. Nf4 {[%emt 0:00:03]} g6 {[%emt 0:00:43]} 7. Nc3 {[%emt 0:00:26]} Bg7 {[%emt 0:00:03]} 8. Be2 {[%emt 0:00:01]} O-O {[%emt 0:00:03]} 9. O-O {[%emt 0:00:02]} Be6 {[%emt 0:00:30]} 10. Nxe6 {[%emt 0:01:57]} fxe6 {[%emt 0:00:01]} 11. f4 {[%emt 0:00:12]} Ned7 {[%emt 0:00:16]} 12. Qd2 {[%emt 0:00:43]} Nc5 {[%emt 0:01:06]} 13. Bf3 {[%emt 0:00:59]} Nc6 {[%emt 0:00:17]} 14. Rb1 {[%emt 0:00:22]} a5 {[%emt 0:01:52]} 15. b3 {[%emt 0:00:54]} e5 {[%emt 0:01:46]} 16. Bb2 {[%emt 0:01:21]} Qd7 {[%emt 0:00:13]} 17. Ba3 {[%emt 0:01:32]} Nb4 {[%emt 0:01:56]} 18. Nd5 {[%emt 0:01:28]} Nxd5 {[%emt 0:01:33]} 19. Qxd5+ {[%emt 0:00:24]} Ne6 {[%emt 0:00:50]} 20. Rbd1 {[%emt 0:01:48]} Kh8 {[%emt 0:01:35]} 21. Qxb7 {[%emt 0:01:51]} Rab8 {[%emt 0:00:31]} 22. Qd5 {[%emt 0:01:05]} exf4 {[%emt 0:00:05]} 23. Bg4 {[%emt 0:00:05]} Rbe8 {[%emt 0:00:47]} 24. exf4 {[%emt 0:00:03]} Qf7 {[%emt 0:00:50]} 25. g3 {[%emt 0:00:50]} a4 {[%emt 0:00:13]} 26. Rfe1 {[%emt 0:00:13]} Nd8 {[%emt 0:00:14]} 27. Qxf7 {[%emt 0:00:04]} Nxf7 {[%emt 0:00:08]} 28. b4 {[%emt 0:00:32]} Rd8 {[%emt 0:00:33]} 29. Kg2 {[%emt 0:00:17]} Nh6 {[%emt 0:00:06]} 30. Bh3 {[%emt 0:00:37]} Bf6 {[%emt 0:00:03]} 31. Re6 {[%emt 0:00:07]} Kg7 {[%emt 0:00:07]} 32. Rde1 {[%emt 0:00:04]} Rb8 {[%emt 0:00:16]} 33. b5 {[%emt 0:00:01]} Rfd8 {[%emt 0:00:54]} 34. g4 {[%emt 0:00:13]} Ng8 {[%emt 0:00:07]} 35. g5 {[%emt 0:00:16]} Bd4 {[%emt 0:00:02]} 36. R6e4 {[%emt 0:00:05]} Bc3 {[%emt 0:00:23]} 37. Rc1 {[%emt 0:00:05]} Ba5 {[%emt 0:00:08]} 38. Be6 {[%emt 0:00:09]} Re8 {[%emt 0:00:18]} 39. Rc2 {[%emt 0:00:01]} h5 {[%emt 0:00:15]} 40. Rce2 {[%emt 0:00:11]} Bb6 {[%emt 0:00:11]} 41. Kf3 {[%emt 0:00:19]} Re7 {[%emt 0:00:06]} 42. Bb2+ {[%emt 0:00:07]} Kh7 {[%emt 0:00:14]} 43. Bf7 0-1

[Event "29th Czech Open-Rapid 2018"]
[Site "Pardubice"]
[Date "2018.07.19"]
[Round "6"]
[White "Shkuran, Daniil"]
[Black "Zhuravlev, Stepan"]
[Result "1/2-1/2"]
[ECO "A06"]
[WhiteElo "2404"]
[BlackElo "2206"]
[Annotator "NA"]
[PlyCount "81"]
[EventDate "2018.07.18"]
[EventType "swiss"]
[EventCountry "CZE"]
[SourceTitle "playchess.com"]
[Source "ChessBase"]
[SourceQuality "1"]
[TimeControl "900+10"]

1. Nf3 {[%emt 0:00:00]} d5 {[%emt 0:00:00]} 2. g3 {[%emt 0:00:00]} c6 {[%emt 0:00:00]} 3. Bg2 {[%emt 0:00:00]} Bg4 {[%emt 0:00:00]} 4. d4 {[%emt 0:00:00]} Nd7 {[%emt 0:00:00]} 5. h3 {[%emt 0:00:00]} Bh5 {[%emt 0:00:01]} 6. O-O {[%emt 0:00:04]} Ngf6 {[%emt 0:00:03]} 7. Nbd2 {[%emt 0:00:04]} e6 {[%emt 0:00:02]} 8. Re1 {[%emt 0:00:01]} Bd6 {[%emt 0:00:23]} 9. e4 {[%emt 0:00:17]} dxe4 {[%emt 0:00:09]} 10. Nxe4 {[%emt 0:00:02]} Nxe4 {[%emt 0:00:08]} 11. Rxe4 {[%emt 0:00:02]} O-O {[%emt 0:00:07]} 12. c3 {[%emt 0:00:10]} Qc7 {[%emt 0:00:47]} 13. Re1 {[%emt 0:02:06]} Rfe8 {[%emt 0:01:00]} 14. Be3 {[%emt 0:00:47]} Rad8 {[%emt 0:01:32]} 15. g4 {[%emt 0:00:21]} Bg6 {[%emt 0:00:02]} 16. Nh4 {[%emt 0:00:02]} c5 {[%emt 0:02:02]} 17. Nxg6 {[%emt 0:00:36]} hxg6 {[%emt 0:00:01]} 18. Qf3 {[%emt 0:00:02]} cxd4 {[%emt 0:00:25]} 19. cxd4 {[%emt 0:00:15]} b6 {[%emt 0:00:13]} 20. Rac1 {[%emt 0:00:16]} Qb8 {[%emt 0:00:02]} 21. Qb7 {[%emt 0:08:08]} Qxb7 {[%emt 0:00:53]} 22. Bxb7 {[%emt 0:00:01]} Nf6 {[%emt 0:00:17]} 23. Rc4 {[%emt 0:01:57]} Nd5 {[%emt 0:00:58]} 24. Bd2 {[%emt 0:00:02]} Bf4 {[%emt 0:01:19]} 25. Be3 {[%emt 0:02:01]} Bd6 {[%emt 0:05:44]} 26. Bg5 {[%emt 0:00:36]} Be7 {[%emt 0:00:35]} 27. Be3 {[%emt 0:00:47]} Bd6 {[%emt 0:00:02]} 28. Kg2 Nf4+ {[%emt 0:00:22]} 29. Bxf4 {[%emt 0:00:32]} Bxf4 {[%emt 0:00:01]} 30. d5 {[%emt 0:00:14]} g5 {[%emt 0:00:52]} 31. dxe6 {[%emt 0:00:27]} Rxe6 {[%emt 0:00:05]} 32. Rxe6 {[%emt 0:00:02]} fxe6 {[%emt 0:00:01]} 33. Bc8 {[%emt 0:00:26]} Kf7 {[%emt 0:00:07]} 34. Rc6 {[%emt 0:00:06]} Rd2 {[%emt 0:00:53]} 35. Bxe6+ {[%emt 0:00:03]} Ke7 {[%emt 0:00:01]} 36. Bc4 {[%emt 0:00:18]} Rxb2 {[%emt 0:00:21]} 37. Re6+ {[%emt 0:00:04]} Kf8 {[%emt 0:00:19]} 38. Bd3 {[%emt 0:00:02]} Kf7 {[%emt 0:00:22]} 39. Bc4 {[%emt 0:00:03]} Kf8 {[%emt 0:00:13]} 40. Bd3 {[%emt 0:00:09]} Kf7 {[%emt 0:00:01]} 41. Bc4 {[%emt 0:00:01]} 1/2-1/2

[Event "29th Czech Open-Rapid 2018"]
[Site "Pardubice"]
[Date "2018.07.19"]
[Round "6"]
[White "Skliarov, Viktor"]
[Black "Soural, Jan"]
[Result "1-0"]
[ECO "B31"]
[WhiteElo "2384"]
[BlackElo "2202"]
[Annotator "NA"]
[PlyCount "77"]
[EventDate "2018.07.18"]
[EventType "swiss"]
[EventCountry "CZE"]
[SourceTitle "playchess.com"]
[Source "ChessBase"]
[SourceQuality "1"]
[TimeControl "900+10"]

1. e4 {[%emt 0:00:00]} c5 {[%emt 0:00:00]} 2. Nf3 {[%emt 0:00:00]} Nc6 {[%emt 0:00:00]} 3. Bb5 {[%emt 0:00:00]} g6 {[%emt 0:00:02]} 4. O-O {[%emt 0:00:00]} Bg7 {[%emt 0:00:08]} 5. Re1 {[%emt 0:00:01]} Nf6 {[%emt 0:00:04]} 6. e5 {[%emt 0:00:01]} Nd5 {[%emt 0:00:03]} 7. Nc3 {[%emt 0:00:02]} Nc7 {[%emt 0:00:08]} 8. Bxc6 {[%emt 0:00:02]} dxc6 {[%emt 0:00:06]} 9. Ne4 {[%emt 0:00:02]} b6 {[%emt 0:00:05]} 10. Nf6+ {[%emt 0:00:03]} Kf8 {[%emt 0:00:03]} 11. Ne4 {[%emt 0:00:02]} Bg4 {[%emt 0:00:51]} 12. d3 {[%emt 0:00:53]} Ne6 {[%emt 0:00:11]} 13. h3 {[%emt 0:03:04]} Bxf3 {[%emt 0:00:10]} 14. Qxf3 {[%emt 0:00:01]} Qd5 {[%emt 0:04:09]} 15. Nd2 {[%emt 0:03:21]} Rd8 {[%emt 0:01:15]} 16. Qxd5 {[%emt 0:01:21]} Rxd5 {[%emt 0:01:23]} 17. Nf3 {[%emt 0:00:12]} h6 {[%emt 0:02:11]} 18. a3 {[%emt 0:01:01]} Kg8 {[%emt 0:00:43]} 19. b4 {[%emt 0:00:13]} Nd4 {[%emt 0:00:20]} 20. Nxd4 {[%emt 0:00:43]} cxd4 {[%emt 0:00:02]} 21. e6 {[%emt 0:00:12]} f5 {[%emt 0:00:20]} 22. a4 {[%emt 0:00:53]} Kh7 {[%emt 0:00:54]} 23. a5 {[%emt 0:00:31]} b5 {[%emt 0:01:21]} 24. Bb2 {[%emt 0:01:35]} c5 {[%emt 0:03:10]} 25. bxc5 {[%emt 0:00:34]} b4 {[%emt 0:00:00]} 26. Ra4 {[%emt 0:00:41]} Rb8 {[%emt 0:00:09]} 27. Bc1 {[%emt 0:01:00]} Rxc5 {[%emt 0:00:31]} 28. Bd2 {[%emt 0:00:02]} Rcb5 {[%emt 0:00:41]} 29. Kf1 {[%emt 0:01:06]} Be5 {[%emt 0:00:23]} 30. Rb1 {[%emt 0:01:26]} Bd6 {[%emt 0:00:08]} 31. f4 {[%emt 0:00:36]} Kg7 {[%emt 0:00:07]} 32. Re1 {[%emt 0:00:12]} a6 {[%emt 0:00:17]} 33. Bc1 {[%emt 0:00:06]} b3 {[%emt 0:00:15]} 34. cxb3 {[%emt 0:00:08]} Rxb3 {[%emt 0:00:01]} 35. Rxd4 {[%emt 0:00:03]} R3b5 {[%emt 0:00:25]} 36. Bd2 {[%emt 0:00:06]} Rb1 {[%emt 0:00:07]} 37. Bc3 {[%emt 0:00:24]} Kf8 {[%emt 0:00:07]} 38. Rc4 {[%emt 0:00:03]} Bxf4 {[%emt 0:00:13]} 39. Rxf4 {[%emt 0:00:06]} 1-0

[Event "29th Czech Open-Rapid 2018"]
[Site "Pardubice"]
[Date "2018.07.19"]
[Round "6"]
[White "Biolek, Richard"]
[Black "Buchcar, Tomas"]
[Result "1-0"]
[ECO "A56"]
[WhiteElo "2364"]
[BlackElo "2174"]
[Annotator "NA"]
[PlyCount "101"]
[EventDate "2018.07.18"]
[EventType "swiss"]
[EventCountry "CZE"]
[SourceTitle "playchess.com"]
[Source "ChessBase"]
[SourceQuality "1"]
[TimeControl "900+10"]

1. d4 {[%emt 0:00:47]} Nf6 {[%emt 0:00:00]} 2. c4 {[%emt 0:00:01]} c5 {[%emt 0:00:00]} 3. Nf3 {[%emt 0:00:06]} cxd4 {[%emt 0:00:00]} 4. Nxd4 {[%emt 0:00:01]} b6 {[%emt 0:00:01]} 5. Nc3 {[%emt 0:00:08]} Bb7 {[%emt 0:00:02]} 6. Qc2 {[%emt 0:00:33]} e6 {[%emt 0:00:10]} 7. e4 {[%emt 0:00:10]} d6 {[%emt 0:00:04]} 8. Be2 {[%emt 0:00:11]} a6 {[%emt 0:00:02]} 9. O-O {[%emt 0:00:02]} Be7 {[%emt 0:00:01]} 10. Be3 {[%emt 0:00:04]} Nbd7 {[%emt 0:00:04]} 11. Rfd1 {[%emt 0:00:11]} Qc7 {[%emt 0:00:02]} 12. f3 {[%emt 0:00:12]} O-O {[%emt 0:00:02]} 13. Rac1 {[%emt 0:00:03]} Rac8 {[%emt 0:00:06]} 14. Bf1 {[%emt 0:00:06]} Qb8 {[%emt 0:00:17]} 15. Qf2 {[%emt 0:00:05]} Bd8 {[%emt 0:00:08]} 16. Kh1 {[%emt 0:01:15]} Bc7 {[%emt 0:00:06]} 17. Qh4 {[%emt 0:00:09]} Ne5 {[%emt 0:00:24]} 18. b3 {[%emt 0:00:20]} Rfe8 {[%emt 0:00:39]} 19. Bg1 {[%emt 0:00:06]} Kh8 {[%emt 0:00:37]} 20. Qg5 {[%emt 0:00:45]} Bd8 {[%emt 0:00:33]} 21. Qd2 {[%emt 0:00:05]} Rg8 {[%emt 0:00:14]} 22. Nce2 {[%emt 0:00:17]} Bc7 {[%emt 0:00:27]} 23. Ng3 {[%emt 0:00:16]} Rce8 {[%emt 0:01:06]} 24. Qb2 {[%emt 0:00:40]} h5 {[%emt 0:00:53]} 25. Qf2 {[%emt 0:00:20]} h4 {[%emt 0:02:35]} 26. Nge2 {[%emt 0:00:01]} g5 {[%emt 0:00:01]} 27. Nc3 {[%emt 0:00:01]} Rg6 {[%emt 0:00:07]} 28. Nc2 {[%emt 0:00:50]} Nh5 {[%emt 0:00:21]} 29. Qd2 {[%emt 0:01:22]} Reg8 {[%emt 0:00:15]} 30. Bd4 {[%emt 0:00:56]} Kh7 {[%emt 0:00:54]} 31. Ne3 {[%emt 0:01:32]} Nc6 {[%emt 0:00:30]} 32. Ne2 {[%emt 0:00:01]} Qf8 {[%emt 0:00:53]} 33. Bb2 {[%emt 0:00:17]} Bc8 {[%emt 0:00:35]} 34. Ba3 {[%emt 0:00:19]} e5 {[%emt 0:00:33]} 35. Nd5 {[%emt 0:00:38]} Bd8 {[%emt 0:00:01]} 36. Qe3 {[%emt 0:00:07]} g4 {[%emt 0:00:46]} 37. f4 {[%emt 0:00:11]} g3 {[%emt 0:00:18]} 38. f5 {[%emt 0:00:21]} Rh6 {[%emt 0:00:26]} 39. h3 {[%emt 0:00:10]} Ne7 {[%emt 0:00:39]} 40. Nxb6 {[%emt 0:00:34]} Nxf5 {[%emt 0:00:01]} 41. exf5 {[%emt 0:00:12]} Bxf5 {[%emt 0:00:02]} 42. Nd5 {[%emt 0:01:15]} Qg7 {[%emt 0:00:18]} 43. Qf3 {[%emt 0:00:44]} Bc8 {[%emt 0:01:18]} 44. Rc2 {[%emt 0:01:09]} f5 {[%emt 0:00:15]} 45. Bc1 {[%emt 0:00:01]} f4 {[%emt 0:00:06]} 46. Nec3 {[%emt 0:00:33]} Kh8 {[%emt 0:00:57]} 47. Bd3 {[%emt 0:00:21]} Be6 {[%emt 0:00:43]} 48. Ne4 {[%emt 0:00:04]} Qd7 {[%emt 0:00:07]} 49. Bf1 {[%emt 0:00:22]} Ng7 {[%emt 0:01:51]} 50. Bb2 {[%emt 0:00:07]} Bf5 {[%emt 0:00:24]} 51. c5 {[%emt 0:01:06]} 1-0

[Event "29th Czech Open-Rapid 2018"]
[Site "Pardubice"]
[Date "2018.07.19"]
[Round "6"]
[White "Grekh, Andrey"]
[Black "Pein, Jonathan"]
[Result "1-0"]
[ECO "C44"]
[WhiteElo "2351"]
[BlackElo "2123"]
[Annotator "NA"]
[PlyCount "93"]
[EventDate "2018.07.18"]
[EventType "swiss"]
[EventCountry "CZE"]
[SourceTitle "playchess.com"]
[Source "ChessBase"]
[SourceQuality "1"]
[TimeControl "900+10"]

1. e4 {[%emt 0:00:00]} Nc6 {[%emt 0:00:00]} 2. Nf3 {[%emt 0:00:00]} e5 {[%emt 0:00:00]} 3. d4 {[%emt 0:00:00]} exd4 {[%emt 0:00:02]} 4. c3 {[%emt 0:00:00]} d3 {[%emt 0:00:09]} 5. Bxd3 {[%emt 0:00:00]} d6 {[%emt 0:00:48]} 6. h3 {[%emt 0:00:00]} Nf6 {[%emt 0:00:14]} 7. O-O {[%emt 0:00:01]} g6 {[%emt 0:00:36]} 8. Bg5 {[%emt 0:00:17]} Bg7 {[%emt 0:00:01]} 9. Qd2 {[%emt 0:00:32]} O-O {[%emt 0:00:05]} 10. Na3 {[%emt 0:00:13]} Ne5 {[%emt 0:00:53]} 11. Nxe5 {[%emt 0:00:07]} dxe5 {[%emt 0:00:00]} 12. Rad1 {[%emt 0:00:49]} Be6 {[%emt 0:00:30]} 13. Qe3 {[%emt 0:05:28]} c6 {[%emt 0:01:10]} 14. Bc4 {[%emt 0:00:48]} Qc8 {[%emt 0:00:01]} 15. f4 {[%emt 0:00:26]} exf4 {[%emt 0:00:21]} 16. Rxf4 {[%emt 0:00:07]} Nh5 {[%emt 0:01:10]} 17. Rf2 {[%emt 0:00:09]} Bxc4 {[%emt 0:00:02]} 18. Nxc4 {[%emt 0:00:01]} Qe6 {[%emt 0:00:01]} 19. b3 {[%emt 0:00:40]} f6 {[%emt 0:01:21]} 20. Bh4 {[%emt 0:03:35]} g5 {[%emt 0:00:06]} 21. Bg3 {[%emt 0:00:01]} Nxg3 {[%emt 0:00:14]} 22. Qxg3 {[%emt 0:00:01]} Rad8 {[%emt 0:00:19]} 23. Nd6 {[%emt 0:03:04]} Rd7 {[%emt 0:00:33]} 24. Rfd2 {[%emt 0:00:30]} Rfd8 {[%emt 0:00:04]} 25. Nc4 {[%emt 0:00:31]} Rxd2 {[%emt 0:00:44]} 26. Rxd2 {[%emt 0:00:01]} Rxd2 27. Nxd2 {[%emt 0:00:01]} Bf8 {[%emt 0:00:13]} 28. Qd3 {[%emt 0:00:32]} Qd6 {[%emt 0:00:53]} 29. Qxd6 {[%emt 0:00:05]} Bxd6 {[%emt 0:00:00]} 30. Kf2 {[%emt 0:00:37]} Be5 {[%emt 0:00:05]} 31. c4 {[%emt 0:00:05]} Kf7 {[%emt 0:00:12]} 32. g4 {[%emt 0:00:14]} Ke6 {[%emt 0:00:24]} 33. Nf3 {[%emt 0:00:03]} Bf4 {[%emt 0:00:23]} 34. Ke2 {[%emt 0:00:01]} Kd6 {[%emt 0:00:13]} 35. Kd3 {[%emt 0:00:01]} Kc5 {[%emt 0:00:01]} 36. Nd4 {[%emt 0:00:10]} Kb4 {[%emt 0:00:44]} 37. Ne6 {[%emt 0:00:27]} b5 {[%emt 0:02:11]} 38. cxb5 {[%emt 0:00:46]} cxb5 {[%emt 0:00:04]} 39. Nxf4 {[%emt 0:00:38]} gxf4 {[%emt 0:00:00]} 40. Ke2 {[%emt 0:00:02]} Ka3 {[%emt 0:00:15]} 41. g5 {[%emt 0:00:01]} fxg5 42. e5 Kxa2 {[%emt 0:00:23]} 43. e6 {[%emt 0:00:01]} Kxb3 {[%emt 0:00:01]} 44. e7 {[%emt 0:00:00]} a5 {[%emt 0:00:01]} 45. e8=Q {[%emt 0:00:02]} b4 {[%emt 0:00:04]} 46. Qg8+ {[%emt 0:00:14]} Kb2 {[%emt 0:00:02]} 47. Qa8 {[%emt 0:00:06]} 1-0

[Event "29th Czech Open-Rapid 2018"]
[Site "Pardubice"]
[Date "2018.07.19"]
[Round "6"]
[White "Zaitsev, Alexander"]
[Black "Mosesov, Danylo"]
[Result "1-0"]
[ECO "B40"]
[WhiteElo "2335"]
[BlackElo "2150"]
[Annotator "NA"]
[PlyCount "109"]
[EventDate "2018.07.18"]
[EventType "swiss"]
[EventCountry "CZE"]
[SourceTitle "playchess.com"]
[Source "ChessBase"]
[SourceQuality "1"]
[TimeControl "900+10"]

1. e4 {[%emt 0:00:00]} c5 {[%emt 0:00:00]} 2. Nf3 {[%emt 0:00:00]} e6 {[%emt 0:00:00]} 3. g3 {[%emt 0:00:00]} d5 {[%emt 0:00:22]} 4. exd5 {[%emt 0:00:00]} exd5 {[%emt 0:00:02]} 5. d4 {[%emt 0:00:00]} Nc6 {[%emt 0:00:01]} 6. Bg2 {[%emt 0:00:00]} Bd6 {[%emt 0:00:31]} 7. dxc5 {[%emt 0:00:13]} Bxc5 {[%emt 0:00:01]} 8. O-O {[%emt 0:00:03]} Nge7 {[%emt 0:00:08]} 9. Nbd2 {[%emt 0:02:25]} O-O {[%emt 0:00:08]} 10. Nb3 {[%emt 0:00:01]} Bb6 {[%emt 0:00:31]} 11. Nfd4 {[%emt 0:01:08]} h6 {[%emt 0:01:13]} 12. Be3 {[%emt 0:00:11]} Ne5 {[%emt 0:00:25]} 13. Re1 {[%emt 0:01:26]} Nc4 {[%emt 0:00:59]} 14. Bc1 {[%emt 0:00:01]} Re8 {[%emt 0:00:22]} 15. c3 {[%emt 0:00:11]} a5 {[%emt 0:00:57]} 16. Nd2 {[%emt 0:00:18]} Nd6 {[%emt 0:00:52]} 17. Nf1 {[%emt 0:01:00]} a4 {[%emt 0:01:51]} 18. Bf4 {[%emt 0:01:21]} Nc4 {[%emt 0:00:15]} 19. b3 {[%emt 0:00:46]} axb3 {[%emt 0:00:06]} 20. axb3 {[%emt 0:00:01]} Rxa1 {[%emt 0:00:02]} 21. Qxa1 {[%emt 0:00:01]} Na5 {[%emt 0:00:17]} 22. Qa3 {[%emt 0:02:32]} Ng6 {[%emt 0:02:12]} 23. Rxe8+ {[%emt 0:00:35]} Qxe8 {[%emt 0:00:02]} 24. Be3 {[%emt 0:00:05]} Qe7 {[%emt 0:00:55]} 25. Qa2 {[%emt 0:01:25]} Qd8 {[%emt 0:01:06]} 26. Nd2 {[%emt 0:00:17]} Bxd4 {[%emt 0:00:33]} 27. Bxd4 {[%emt 0:00:16]} Be6 {[%emt 0:00:09]} 28. Nf3 {[%emt 0:00:34]} Nc6 {[%emt 0:00:15]} 29. Be3 {[%emt 0:00:08]} Nge5 {[%emt 0:00:21]} 30. Nxe5 {[%emt 0:00:01]} Nxe5 {[%emt 0:00:01]} 31. Qa7 {[%emt 0:00:47]} Qc8 {[%emt 0:00:32]} 32. Qd4 {[%emt 0:00:23]} Nc6 {[%emt 0:00:12]} 33. Qc5 {[%emt 0:00:07]} Qa8 {[%emt 0:00:13]} 34. h3 {[%emt 0:00:47]} Ne5 {[%emt 0:00:27]} 35. Kh2 {[%emt 0:00:20]} Qa1 {[%emt 0:00:29]} 36. Bxd5 {[%emt 0:01:09]} Bxd5 37. Qxd5 Qxc3 {[%emt 0:00:39]} 38. Qxb7 {[%emt 0:00:11]} h5 {[%emt 0:01:16]} 39. Kg2 {[%emt 0:00:19]} Nd3 {[%emt 0:00:56]} 40. Qa8+ {[%emt 0:00:31]} Kh7 {[%emt 0:00:01]} 41. Qd5 {[%emt 0:00:01]} Ne1+ {[%emt 0:01:11]} 42. Kf1 {[%emt 0:01:02]} Nc2 {[%emt 0:00:02]} 43. Bd2 {[%emt 0:00:36]} Qa1+ {[%emt 0:01:03]} 44. Kg2 {[%emt 0:00:00]} Qd1 {[%emt 0:00:02]} 45. Qe4+ {[%emt 0:00:32]} Kg8 {[%emt 0:00:27]} 46. Bc3 {[%emt 0:00:01]} Kf8 {[%emt 0:00:19]} 47. b4 {[%emt 0:00:24]} Qb1 {[%emt 0:00:08]} 48. Qa8+ {[%emt 0:00:16]} Ke7 {[%emt 0:00:01]} 49. Qb7+ {[%emt 0:00:05]} Ke6 {[%emt 0:00:05]} 50. b5 {[%emt 0:00:07]} Qb3 {[%emt 0:00:10]} 51. Qc6+ {[%emt 0:00:05]} Ke7 {[%emt 0:00:05]} 52. b6 {[%emt 0:00:07]} Qa2 {[%emt 0:00:26]} 53. b7 {[%emt 0:00:14]} Ne3+ {[%emt 0:00:08]} 54. Kf3 {[%emt 0:00:01]} Nd1 {[%emt 0:00:17]} 55. Bb4+ {[%emt 0:00:17]} 1-0

[Event "29th Czech Open-Rapid 2018"]
[Site "Pardubice"]
[Date "2018.07.19"]
[Round "6"]
[White "Sarkar, Justin"]
[Black "Priyanka, Nutakki"]
[Result "1-0"]
[ECO "A56"]
[WhiteElo "2314"]
[BlackElo "1839"]
[Annotator "NA"]
[PlyCount "81"]
[EventDate "2018.07.18"]
[EventType "swiss"]
[EventCountry "CZE"]
[SourceTitle "playchess.com"]
[Source "ChessBase"]
[SourceQuality "1"]
[TimeControl "900+10"]

1. d4 {[%emt 0:02:23]} Nf6 {[%emt 0:00:00]} 2. c4 {[%emt 0:00:03]} c5 {[%emt 0:00:06]} 3. e3 {[%emt 0:00:50]} g6 {[%emt 0:00:56]} 4. Nc3 {[%emt 0:00:22]} Bg7 {[%emt 0:00:07]} 5. Nf3 {[%emt 0:01:16]} O-O {[%emt 0:00:05]} 6. Be2 {[%emt 0:00:06]} d5 {[%emt 0:00:41]} 7. dxc5 {[%emt 0:00:57]} Qa5 {[%emt 0:00:05]} 8. cxd5 {[%emt 0:03:31]} Nxd5 {[%emt 0:00:08]} 9. Qxd5 {[%emt 0:00:24]} Bxc3+ {[%emt 0:00:03]} 10. Kf1 {[%emt 0:01:33]} Bb4 {[%emt 0:02:45]} 11. a3 {[%emt 0:00:42]} Bxc5 {[%emt 0:00:51]} 12. Bd2 {[%emt 0:00:38]} Qb6 {[%emt 0:00:01]} 13. Bc3 {[%emt 0:00:11]} Be6 {[%emt 0:01:05]} 14. Qg5 {[%emt 0:00:50]} f6 {[%emt 0:01:45]} 15. Qh6 {[%emt 0:00:04]} Rf7 {[%emt 0:00:23]} 16. h4 {[%emt 0:00:04]} Nd7 {[%emt 0:01:59]} 17. h5 {[%emt 0:00:32]} g5 {[%emt 0:00:44]} 18. b4 {[%emt 0:01:23]} Bd6 {[%emt 0:00:01]} 19. Nxg5 {[%emt 0:00:16]} fxg5 {[%emt 0:00:30]} 20. Qxe6 {[%emt 0:00:04]} Nf8 {[%emt 0:00:56]} 21. Qd5 {[%emt 0:01:21]} h6 {[%emt 0:00:15]} 22. Rd1 {[%emt 0:00:05]} Rc8 {[%emt 0:01:15]} 23. Bd4 {[%emt 0:01:02]} Qc6 {[%emt 0:00:01]} 24. Qxc6 {[%emt 0:00:09]} Rxc6 {[%emt 0:00:08]} 25. Bxa7 {[%emt 0:00:07]} Rc3 {[%emt 0:00:08]} 26. Bd4 {[%emt 0:00:14]} Rxa3 {[%emt 0:00:29]} 27. Bc4 {[%emt 0:00:03]} e6 {[%emt 0:00:01]} 28. Bb2 {[%emt 0:00:03]} Ra4 {[%emt 0:00:03]} 29. Rxd6 {[%emt 0:00:09]} Rxb4 {[%emt 0:00:01]} 30. Ba3 {[%emt 0:00:27]} Rxc4 {[%emt 0:00:27]} 31. Ke2 {[%emt 0:00:04]} Rc2+ {[%emt 0:00:03]} 32. Rd2 {[%emt 0:00:06]} Rxd2+ {[%emt 0:00:02]} 33. Kxd2 {[%emt 0:00:01]} Rxf2+ {[%emt 0:00:02]} 34. Kd3 {[%emt 0:00:01]} Rxg2 {[%emt 0:00:12]} 35. Rc1 {[%emt 0:00:06]} Nd7 {[%emt 0:00:25]} 36. Rc8+ {[%emt 0:00:21]} Kf7 {[%emt 0:00:02]} 37. Rc7 {[%emt 0:00:02]} Ke8 {[%emt 0:00:01]} 38. Rc8+ {[%emt 0:00:05]} Kf7 {[%emt 0:00:01]} 39. Rc7 {[%emt 0:00:01]} Ke8 {[%emt 0:00:05]} 40. Rc8+ {[%emt 0:00:02]} Kf7 {[%emt 0:00:06]} 41. Rc7 {[%emt 0:00:03]} 1-0